bitfinex/quotes_SOLUSD_20250805
["timestamp","ask_amount","ask_price","bid_price","bid_amount"]
[1754419247885,12.5336237,163.92,163.88,0.69]
[1754419248204,12.5336237,163.92,163.88,6.79199896]
[1754419248205,26.0,163.91,163.88,6.79199896]
[1754419248387,12.5336237,163.89,163.84,0.06]
[1754419248906,12.5336237,163.88,163.85,0.69]
[1754419249076,12.5336237,163.88,163.84,0.06]
[1754419249397,12.5336237,163.89,163.84,18.69706627]
[1754419249598,12.5336237,163.89,163.85,0.69]
[1754419249974,75.42106296,163.91,163.86,13.2236237]
[1754419249975,69.32,163.91,163.86,13.2236237]
[1754419250188,12.5336237,163.89,163.84,18.69706627]
[1754419250505,12.5336237,163.89,163.84,19.38706627]
[1754419250720,13.2136237,163.89,163.84,19.38706627]
[1754419251576,19.31546019,163.89,163.84,19.38706627]
[1754419251773,0.68,163.88,163.84,19.38706627]
[1754419251976,0.68,163.88,163.84,12.5936237]
[1754419252286,0.68,163.87,163.84,0.06]
[1754419252813,12.5336237,163.88,163.84,0.06]
[1754419253105,0.68,163.88,163.84,12.5936237]
[1754419254006,13.2136237,163.87,163.84,0.06]
[1754419254194,12.5336237,163.85,163.84,0.06]
[1754419254591,13.2136237,163.85,163.84,0.06]
[1754419255525,0.68,163.85,163.84,0.06]
[1754419256287,19.31676681,163.85,163.84,0.06]
[1754419256512,45.31676681,163.85,163.84,0.06]
[1754419257185,19.31676681,163.85,163.84,0.06]
[1754419257980,6.78314311,163.85,163.84,0.06]
[1754419258185,19.31676681,163.85,163.84,0.06]
[1754419258706,26.0,163.85,163.84,0.06]
[1754419259222,12.5336237,163.86,163.84,0.06]
[1754419259602,55.8536237,163.87,163.84,0.06]
[1754419259907,26.0,163.85,163.84,0.75]
[1754419260317,19.31563514,163.89,163.84,13.2836237]
[1754419260503,26.0,163.86,163.85,0.69]
[1754419261089,26.0,163.86,163.84,12.5936237]
[1754419261588,26.0,163.86,163.84,13.2836237]
[1754419263219,0.68,163.85,163.84,0.06]
[1754419263395,38.5336237,163.86,163.84,0.06]
[1754419263595,39.2436237,163.86,163.84,0.06]
[1754419264016,26.0,163.86,163.84,0.06]
[1754419266829,0.71,163.85,163.84,0.06]
[1754419266997,26.0,163.86,163.84,0.06]
[1754419267826,26.71,163.86,163.84,0.06]
[1754419268425,13.2436237,163.85,163.84,0.06]
[1754419269001,26.0,163.85,163.84,0.06]
[1754419271719,26.71,163.85,163.84,0.06]
[1754419272302,26.0,163.85,163.84,0.06]
[1754419272929,33.83006737,163.85,163.84,0.06]
[1754419273113,34.54006737,163.85,163.84,0.06]
[1754419273314,40.64321048,163.85,163.84,0.06]
[1754419273513,34.54006737,163.85,163.84,0.06]
[1754419273718,40.64321048,163.85,163.84,0.06]
[1754419273910,34.54006737,163.85,163.84,0.06]
[1754419274397,26.0,163.85,163.84,0.06]
[1754419275018,34.54006737,163.85,163.84,0.06]
[1754419275332,40.64321048,163.85,163.84,0.06]
[1754419276626,26.0,163.85,163.84,0.06]
[1754419277014,26.0,163.85,163.84,0.78]
[1754419277216,26.0,163.86,163.84,0.78]
[1754419277611,26.0,163.86,163.84,0.06]
[1754419278808,8.54006737,163.85,163.84,0.06]
[1754419280607,39.93321048,163.85,163.84,0.06]
[1754419280811,40.64321048,163.85,163.84,0.06]
[1754419281448,44.8515064,163.85,163.84,0.06]
[1754419281601,34.24204511,163.85,163.84,0.06]
[1754419281807,34.24204511,163.85,163.84,1e-08]
[1754419282009,36.68710811,163.85,163.84,1e-08]
[1754419282354,26.0,163.81,163.73,0.06]
[1754419282659,15.53270028,163.84,163.73,0.06]
[1754419282660,33.83006737,163.77,163.73,0.06]
[1754419282812,33.83006737,163.77,163.73,6.88761619]
[1754419283007,26.0,163.77,163.76,0.72]
[1754419283218,7.83006737,163.79,163.76,0.72]
[1754419283429,26.0,163.8,163.75,7.89006737]
[1754419283627,26.0,163.8,163.77,0.72]
[1754419283818,0.71,163.84,163.77,0.72]
[1754419283819,7.83006737,163.82,163.77,8.55006737]
[1754419284012,33.83006737,163.82,163.78,0.72]
[1754419284439,26.0,163.82,163.79,0.72]
[1754419284640,51.84006737,163.84,163.79,6.10537883]
[1754419284826,51.84006737,163.84,163.8,0.72]
[1754419285013,7.83006737,163.84,163.8,0.72]
[1754419285216,7.83006737,163.85,163.8,8.55006737]
[1754419285451,7.83006737,163.85,163.81,0.72]
[1754419285755,7.83006737,163.86,163.82,0.72]
[1754419285917,8.54006737,163.86,163.82,0.72]
[1754419286114,8.54006737,163.86,163.81,7.83006737]
[1754419286330,8.54006737,163.86,163.81,8.55006737]
[1754419286940,0.71,163.85,163.81,14.65449559]
[1754419287254,0.71,163.85,163.81,6.82442822]
[1754419287553,0.71,163.85,163.8,7.83006737]
[1754419287554,8.54006737,163.84,163.79,13.93534268]
[1754419287708,0.71,163.83,163.79,6.10527531]
[1754419287908,0.71,163.83,163.79,13.93534268]
[1754419288436,8.54006737,163.83,163.78,7.83006737]
[1754419288611,0.71,163.82,163.78,7.83006737]
[1754419288932,13.93446698,163.82,163.77,14.6561411]
[1754419289119,0.71,163.81,163.77,14.6561411]
[1754419289316,7.83006737,163.82,163.77,13.9361411]
[1754419289520,7.83006737,163.82,163.78,0.72]
[1754419290119,33.83006737,163.86,163.81,7.83006737]
[1754419290316,26.0,163.86,163.83,7.83006737]
[1754419290563,0.03,163.87,163.84,7.83006737]
[1754419290742,0.03,163.87,163.84,8.55006737]
[1754419290945,0.03,163.87,163.84,14.653399]
[1754419291246,0.03,163.87,163.85,7.83006737]
[1754419291416,0.03,163.87,163.86,7.83006737]
[1754419291610,0.03,163.87,163.86,8.55006737]
[1754419291814,0.03,163.87,163.86,8.69222894]
[1754419292207,0.03,163.87,163.86,51.99222894]
[1754419292439,0.03,163.87,163.86,51.85006737]
[1754419292639,0.03,163.87,163.86,56.5381919]
[1754419293134,0.03,163.87,163.86,62.64096255]
[1754419293342,0.03,163.87,163.86,19.34096255]
[1754419293547,0.03,163.87,163.85,49.40302767]
[1754419293751,0.03,163.87,163.86,12.5181919]
[1754419294314,0.03,163.87,163.86,13.1981919]
[1754419295154,0.03,163.87,163.86,12.5181919]
[1754419297021,0.03,163.87,163.86,13.1981919]
[1754419298627,0.03,163.87,163.86,34.54933969]
[1754419298830,0.03,163.87,163.86,34.83366283]
[1754419299141,0.03,163.89,163.86,124.83366283]
[1754419299344,0.03,163.89,163.88,12.5181919]
[1754419299519,0.03,163.89,163.88,55.7981919]
[1754419299722,0.03,163.89,163.88,56.4781919]
[1754419300748,0.03,163.89,163.88,62.72237934]
[1754419302635,0.03,163.89,163.88,77.82859491]
[1754419303034,0.03,163.93,163.88,93.36798273]
[1754419303254,0.03,163.93,163.89,15.92837714]
[1754419303564,0.03,163.93,163.92,12.66035347]
[1754419303735,0.03,163.93,163.92,55.94035347]
[1754419303935,0.03,163.93,163.92,56.62035347]
[1754419304236,0.03,163.93,163.92,55.94035347]
[1754419304650,0.03,163.93,163.92,62.04089031]
[1754419307668,0.03,163.93,163.92,77.82710588]
[1754419308122,0.03,163.93,163.92,141.82710588]
[1754419309883,0.03,163.93,163.92,141.14710588]
[1754419310235,0.03,163.93,163.92,126.04089031]
[1754419311173,0.03,163.93,163.92,113.52269841]
[1754419311331,0.03,163.93,163.92,126.04089031]
[1754419312166,0.03,163.93,163.92,125.89872874]
[1754419312367,0.72,163.93,163.92,125.89872874]
[1754419312867,0.72,163.93,163.92,121.19981967]
[1754419313765,0.72,163.93,163.92,64.0]
[1754419313947,0.72,163.93,163.92,43.26]
[1754419314135,0.03,163.93,163.92,57.17981967]
[1754419314342,0.72,163.93,163.92,51.07928283]
[1754419315237,0.03,163.93,163.92,57.17981967]
[1754419315838,0.72,163.93,163.92,57.17981967]
[1754419316038,0.72,163.93,163.92,51.07928283]
[1754419316537,0.72,163.93,163.92,43.26]
[1754419316834,0.72,163.93,163.92,51.07928283]
[1754419317563,0.03,163.93,163.92,57.17981967]
[1754419318668,0.03,163.93,163.92,58.00198124]
[1754419319968,0.03,163.93,163.92,57.32198124]
[1754419320172,0.72,163.93,163.92,51.07928283]
[1754419320373,0.72,163.93,163.91,13.92003646]
[1754419320547,0.03,163.93,163.92,43.26]
[1754419321376,0.72,163.93,163.92,43.26]
[1754419323076,0.03,163.93,163.92,43.26]
[1754419323745,0.69,163.93,163.92,43.26]
[1754419326173,14.60944753,163.93,163.85,15.10621557]
[1754419326342,7.81928283,163.91,163.86,51.05928283]
[1754419326546,0.66,163.9,163.86,51.05928283]
[1754419326776,8.47928283,163.9,163.89,0.06]
[1754419330367,14.58056409,163.9,163.89,0.06]
[1754419330771,14.86488723,163.9,163.89,0.06]
[1754419330956,22.68417006,163.9,163.89,0.06]
[1754419334552,37.79038563,163.9,163.89,0.06]
[1754419334872,26.0,163.87,163.81,0.06]
[1754419335075,7.81928283,163.82,163.81,0.06]
[1754419335886,0.66,163.83,163.81,0.06]
[1754419336074,7.81928283,163.82,163.81,0.06]
[1754419336482,26.0,163.82,163.81,0.06]
[1754419336986,33.81928283,163.82,163.81,0.06]
[1754419338793,26.0,163.82,163.81,0.06]
[1754419338988,33.81928283,163.82,163.81,0.06]
[1754419339285,34.47928283,163.82,163.81,0.06]
[1754419339505,33.81928283,163.82,163.81,0.06]
[1754419340109,34.47928283,163.82,163.81,0.06]
[1754419340616,33.81928283,163.82,163.81,0.06]
[1754419341117,26.0,163.82,163.81,0.06]
[1754419342013,26.0,163.82,163.81,0.76]
[1754419342221,33.81928283,163.82,163.81,0.76]
[1754419342516,34.47928283,163.82,163.81,0.06]
[1754419344191,40.5835436,163.82,163.81,0.06]
[1754419346895,40.86786674,163.82,163.81,0.06]
[1754419349320,6.10399413,163.83,163.81,0.06]
[1754419349513,7.81928283,163.82,163.81,0.06]
[1754419350210,7.81928283,163.83,163.81,0.06]
[1754419350414,7.81928283,163.82,163.81,0.06]
[1754419350822,8.47928283,163.82,163.81,0.06]
[1754419351220,34.47928283,163.82,163.81,0.06]
[1754419351532,34.76360597,163.82,163.81,0.06]
[1754419351717,8.76360597,163.82,163.81,0.06]
[1754419352035,14.86786674,163.82,163.81,0.06]
[1754419352544,40.86786674,163.82,163.81,0.06]
[1754419352703,14.86786674,163.82,163.81,0.06]
[1754419352901,7.04858391,163.82,163.81,0.06]
[1754419353218,14.86786674,163.82,163.81,0.06]
[1754419353422,40.86786674,163.82,163.81,0.06]
[1754419353619,14.86786674,163.82,163.81,0.06]
[1754419354026,40.86786674,163.82,163.81,0.06]
[1754419354250,14.86786674,163.82,163.81,0.06]
[1754419354835,55.97408231,163.82,163.81,0.06]
[1754419355337,29.97408231,163.82,163.81,0.06]
[1754419355510,15.10621557,163.81,163.79,0.06]
[1754419355709,26.0,163.77,163.75,0.06]
[1754419355908,7.81928283,163.76,163.75,0.06]
[1754419356134,14.57578014,163.76,163.75,0.06]
[1754419356502,13.92578014,163.76,163.75,0.06]
[1754419356710,14.57578014,163.76,163.75,0.06]
[1754419357924,77.07928283,163.77,163.75,0.75]
[1754419358113,43.26,163.8,163.75,0.75]
[1754419358309,7.81928283,163.76,163.75,0.06]
[1754419358708,33.81928283,163.76,163.75,0.06]
[1754419358909,8.46928283,163.76,163.75,0.06]
[1754419359232,8.75360597,163.76,163.75,0.06]
[1754419360353,7.81928283,163.76,163.75,0.06]
[1754419360530,13.92578014,163.76,163.75,0.06]
[1754419362062,7.81928283,163.76,163.75,0.06]
[1754419362218,13.92578014,163.76,163.75,0.06]
[1754419363151,6.10649731,163.76,163.75,0.06]
[1754419363360,13.92578014,163.76,163.75,0.06]
[1754419364653,7.81928283,163.76,163.75,0.06]
[1754419365936,8.46928283,163.76,163.75,0.06]
[1754419366319,14.71794171,163.76,163.75,0.06]
[1754419368124,26.0,163.74,163.73,0.06]
[1754419368320,26.0,163.74,163.73,1e-08]
[1754419368321,98.57706473,163.74,163.73,1e-08]
[1754419368544,99.22706473,163.74,163.73,1e-08]
[1754419369326,99.3692263,163.74,163.73,1e-08]
[1754419369541,15.53270028,163.73,163.65,0.69]
[1754419369757,7.81928283,163.66,163.65,0.69]
[1754419369961,33.81928283,163.67,163.65,0.69]
[1754419370237,26.0,163.66,163.65,0.69]
[1754419370831,7.81928283,163.67,163.65,0.69]
[1754419370832,26.0,163.67,163.65,0.69]
[1754419371569,26.0,163.67,163.66,0.69]
[1754419372136,26.0,163.64,163.62,0.69]
[1754419372345,26.0,163.64,163.63,0.69]
[1754419374046,26.0,163.65,163.63,0.69]
[1754419374235,26.0,163.64,163.63,0.69]
[1754419375949,26.0,163.65,163.63,0.69]
[1754419376143,26.0,163.64,163.63,0.69]
[1754419376973,7.81928283,163.66,163.63,0.69]
[1754419377271,6.10989987,163.67,163.62,6.11161843]
[1754419377272,7.81928283,163.67,163.64,0.69]
[1754419377587,33.81928283,163.65,163.59,0.69]
[1754419377788,7.81928283,163.6,163.58,0.1]
[1754419377948,7.81928283,163.59,163.58,0.1]
[1754419378145,0.65,163.59,163.58,0.1]
[1754419378446,8.46928283,163.59,163.58,0.1]
[1754419378674,7.81928283,163.59,163.58,0.1]
[1754419378973,32.1122614,163.61,163.58,0.1]
[1754419379157,26.0,163.61,163.58,0.1]
[1754419379361,7.81928283,163.59,163.58,0.1]
[1754419379591,32.76215323,163.61,163.58,0.1]
[1754419379761,7.81928283,163.59,163.58,0.1]
[1754419380482,0.65,163.59,163.58,0.1]
[1754419380686,8.46928283,163.59,163.58,0.1]
[1754419381078,7.81928283,163.59,163.58,0.1]
[1754419381253,13.93212591,163.59,163.58,0.1]
[1754419381456,14.58212591,163.59,163.58,0.1]
[1754419382081,40.58212591,163.59,163.58,0.1]
[1754419383072,34.46928283,163.59,163.58,0.1]
[1754419383379,7.81928283,163.63,163.58,14.7224996]
[1754419383580,50.04060189,163.65,163.58,14.7224996]
[1754419383581,7.81928283,163.64,163.59,8.47928283]
[1754419383783,7.81928283,163.64,163.59,7.76928283]
[1754419383969,7.81928283,163.64,163.6,0.71]
[1754419384163,7.81928283,163.64,163.61,0.71]
[1754419384363,7.81928283,163.64,163.59,7.76928283]
[1754419384574,8.50928283,163.64,163.6,0.71]
[1754419384779,7.81928283,163.63,163.6,0.71]
[1754419385888,7.81928283,163.64,163.6,0.71]
[1754419386192,8.50928283,163.64,163.6,0.71]
[1754419386351,7.81928283,163.64,163.6,0.71]
[1754419386675,8.50928283,163.64,163.6,0.71]
[1754419386865,8.50928283,163.64,163.59,13.93200424]
[1754419387057,7.81928283,163.64,163.6,0.71]
[1754419387258,33.81928283,163.65,163.61,0.71]
[1754419387793,33.81928283,163.65,163.6,7.81928283]
[1754419387794,26.0,163.65,163.62,8.52928283]
[1754419387964,26.0,163.65,163.63,0.71]
[1754419388454,26.0,163.65,163.62,7.81928283]
[1754419388859,26.0,163.65,163.62,13.93089832]
[1754419389197,8.50928283,163.64,163.59,7.81928283]
[1754419389371,33.81928283,163.65,163.6,7.9614444]
[1754419389558,26.0,163.65,163.62,7.81928283]
[1754419389886,26.0,163.65,163.62,8.52928283]
[1754419390194,8.50928283,163.64,163.59,14.64212591]
[1754419391063,0.69,163.64,163.6,7.81928283]
[1754419391267,0.69,163.64,163.6,8.52928283]
[1754419391461,33.81928283,163.65,163.6,7.81928283]
[1754419391695,33.81928283,163.65,163.59,6.11284308]
[1754419391696,26.0,163.65,163.61,8.52928283]
[1754419392061,26.69,163.65,163.61,7.81928283]
[1754419392295,34.50928283,163.65,163.6,7.9614444]
[1754419392517,34.50928283,163.65,163.6,8.6714444]
[1754419392668,34.50928283,163.65,163.61,6.11209583]
[1754419392987,34.50928283,163.65,163.58,8.62928283]
[1754419392988,0.69,163.64,163.58,8.62928283]
[1754419393299,7.81928283,163.63,163.59,6.11280091]
[1754419393460,8.50928283,163.63,163.59,6.11280091]
[1754419393663,0.69,163.63,163.59,13.93208374]
[1754419394100,0.69,163.63,163.59,14.64208374]
[1754419395772,34.50928283,163.65,163.6,8.52928283]
[1754419395903,26.0,163.65,163.62,7.81928283]
[1754419396074,26.0,163.65,163.61,7.81928283]
[1754419396399,26.0,163.65,163.61,14.64103637]
[1754419396596,26.69,163.65,163.61,14.64103637]
[1754419398207,26.0,163.65,163.61,14.64103637]
[1754419398594,26.0,163.65,163.62,7.81928283]
[1754419399523,26.0,163.65,163.62,13.93090578]
[1754419399711,26.69,163.65,163.62,13.93090578]
[1754419400207,26.0,163.65,163.61,13.93122016]
[1754419400409,8.50928283,163.64,163.6,6.11232486]
[1754419400589,0.69,163.63,163.6,13.93160769]
[1754419400983,26.0,163.65,163.61,0.71]
[1754419401181,26.0,163.65,163.62,8.52928283]
[1754419401618,26.0,163.65,163.62,14.64085851]
[1754419401806,26.69,163.65,163.61,13.93125289]
[1754419402106,26.69,163.65,163.61,14.64125289]
[1754419404205,26.69,163.65,163.61,13.93125289]
[1754419404793,0.69,163.64,163.6,6.1124221]
[1754419404997,39.92997672,163.65,163.6,13.93170493]
[1754419404998,0.69,163.63,163.6,13.93170493]
[1754419406326,34.50928283,163.65,163.6,14.64170493]
[1754419406628,26.69,163.65,163.61,8.52928283]
[1754419407728,26.69,163.65,163.61,14.64102411]
[1754419408992,18.45571089,163.73,163.64,7.81928283]
[1754419409225,8.50928283,163.7,163.65,7.81928283]
[1754419409507,34.50928283,163.7,163.65,7.81928283]
[1754419409693,34.50928283,163.7,163.66,6.11022852]
[1754419409893,7.81928283,163.71,163.66,14.63951135]
[1754419410123,7.81928283,163.69,163.64,51.09928283]
[1754419410298,8.50928283,163.7,163.65,8.52928283]
[1754419410505,34.50928283,163.69,163.64,57.21010986]
[1754419410693,33.81928283,163.69,163.64,57.21010986]
[1754419410907,0.69,163.68,163.64,57.21010986]
[1754419411212,0.69,163.67,163.64,49.39092638]
[1754419411410,8.50928283,163.68,163.64,49.39092638]
[1754419411721,8.50928283,163.68,163.64,43.28]
[1754419411722,7.81928283,163.67,163.64,43.28]
[1754419411925,0.69,163.66,163.64,43.28]
[1754419412102,0.69,163.66,163.63,6.11122181]
[1754419412811,8.50928283,163.65,163.61,113.39178087]
[1754419413012,7.81928283,163.62,163.58,0.1]
[1754419413214,7.81928283,163.62,163.58,43.38]
[1754419413524,0.7,163.61,163.59,0.06]
[1754419413913,0.7,163.6,163.59,0.06]
[1754419414128,34.51928283,163.6,163.59,0.06]
[1754419414330,59.61856566,163.6,163.58,0.1]
[1754419414637,26.0,163.57,163.56,0.06]
[1754419414840,33.81928283,163.57,163.56,0.06]
[1754419415016,34.51928283,163.57,163.56,0.06]
[1754419415742,40.63287334,163.57,163.56,0.06]
[1754419416043,34.51928283,163.57,163.56,0.06]
[1754419416342,40.63287334,163.57,163.56,0.06]
[1754419416938,33.81928283,163.57,163.56,0.06]
[1754419417156,26.0,163.57,163.56,0.06]
[1754419417312,7.81928283,163.6,163.56,0.73]
[1754419417512,7.81928283,163.6,163.57,0.67]
[1754419417732,6.11176717,163.62,163.57,0.67]
[1754419417958,7.81928283,163.6,163.57,0.67]
[1754419418425,7.81928283,163.6,163.56,6.1736213]
[1754419418627,8.51928283,163.6,163.56,6.1736213]
[1754419418835,8.51928283,163.6,163.56,6.8436213]
[1754419419041,7.81928283,163.6,163.57,0.67]
[1754419419336,7.81928283,163.6,163.56,6.1736213]
[1754419419549,7.81928283,163.57,163.56,0.06]
[1754419419915,33.81928283,163.57,163.56,0.06]
[1754419420129,43.98,163.6,163.56,0.06]
[1754419420417,7.81928283,163.58,163.56,0.06]
[1754419421039,8.51928283,163.58,163.56,0.06]
[1754419421468,7.81928283,163.58,163.56,0.06]
[1754419422758,7.81928283,163.59,163.56,0.06]
[1754419423165,7.81928283,163.62,163.57,8.48928283]
[1754419423352,7.81928283,163.62,163.57,7.81928283]
[1754419423557,8.51928283,163.62,163.58,0.67]
[1754419423762,7.81928283,163.63,163.6,6.11246943]
[1754419423980,8.51928283,163.64,163.6,6.78246943]
[1754419424480,7.81928283,163.64,163.59,13.93198945]
[1754419424796,8.51928283,163.63,163.59,6.78270662]
[1754419424966,0.7,163.63,163.59,14.60198945]
[1754419425558,7.81928283,163.64,163.59,14.60198945]
[1754419425760,8.51928283,163.64,163.59,14.60198945]
[1754419425969,26.0,163.63,163.6,0.67]
[1754419426486,43.28,163.67,163.59,13.93198945]
[1754419426487,51.79928283,163.67,163.62,7.81928283]
[1754419426854,43.98,163.67,163.63,8.48928283]
[1754419427154,0.7,163.67,163.63,0.67]
[1754419427477,7.81928283,163.65,163.6,7.9614444]
[1754419427676,7.81928283,163.64,163.59,6.11270662]
[1754419428064,0.7,163.63,163.59,6.11270662]
[1754419428278,8.51928283,163.67,163.62,7.81928283]
[1754419428455,7.81928283,163.67,163.62,7.81928283]
[1754419428658,0.7,163.66,163.62,8.48928283]
[1754419429053,8.51928283,163.65,163.6,0.14216157]
[1754419429355,8.51928283,163.65,163.6,7.9614444]
[1754419429554,8.51928283,163.65,163.61,6.11209583]
[1754419430048,0.7,163.65,163.61,13.93137866]
[1754419430365,14.62919353,163.67,163.61,14.60137866]
[1754419430544,0.7,163.65,163.61,14.60137866]
[1754419431173,8.51928283,163.64,163.58,0.67]
[1754419431347,8.51928283,163.63,163.58,8.48928283]
[1754419431553,34.51928283,163.63,163.59,6.11284308]
[1754419432573,11.00541564,163.7,163.59,6.11284308]
[1754419432574,0.7,163.67,163.61,7.81928283]
[1754419432956,8.51928283,163.67,163.61,8.48928283]
[1754419433270,26.0,163.65,163.61,8.48928283]
[1754419433482,26.7,163.65,163.61,8.48928283]
[1754419433677,26.0,163.65,163.62,8.48928283]
[1754419433992,7.81928283,163.67,163.63,0.67]
[1754419434175,69.28,163.68,163.63,7.81928283]
[1754419434367,77.79928283,163.68,163.64,0.67]
[1754419435290,7.81928283,163.69,163.65,0.67]
[1754419435590,0.03,163.65,163.64,14.60025814]
[1754419436583,0.03,163.65,163.64,29.84863528]
[1754419436984,0.03,163.65,163.64,30.13295842]
[1754419437164,0.03,163.67,163.66,0.14216157]
[1754419437486,0.03,163.67,163.66,67.30198311]
[1754419437789,0.03,163.67,163.66,73.41221163]
[1754419440488,0.73,163.75,163.67,0.28432314]
[1754419440689,0.73,163.75,163.71,7.81928283]
[1754419441073,0.7,163.74,163.71,13.92736005]
[1754419441993,0.03,163.75,163.72,7.81928283]
[1754419442604,0.03,163.75,163.74,7.9614444]
[1754419442814,0.03,163.75,163.74,66.61198311]
[1754419442972,0.03,163.75,163.74,67.28198311]
[1754419443170,0.03,163.75,163.74,73.3892263]
[1754419444624,0.03,163.75,163.74,49.50940476]
[1754419444770,0.71,163.75,163.74,43.26]
[1754419445781,0.71,163.75,163.72,49.3679287]
[1754419446504,0.03,163.75,163.72,57.86721153]
[1754419446704,0.03,163.75,163.72,55.80163022]
[1754419446903,0.03,163.75,163.72,43.26]
[1754419447104,0.68,163.74,163.72,43.26]
[1754419449706,0.68,163.73,163.72,43.26]
[1754419449894,0.03,163.75,163.72,43.26]
[1754419450087,13.25163022,163.75,163.72,43.26]
[1754419450805,0.68,163.74,163.72,43.26]
[1754419452287,12.57163022,163.75,163.72,43.26]
[1754419452480,13.25163022,163.75,163.72,43.26]
[1754419452906,12.57163022,163.75,163.72,43.26]
[1754419453114,0.68,163.74,163.72,43.26]
[1754419453410,12.57163022,163.75,163.72,43.26]
[1754419453613,0.68,163.74,163.72,43.26]
[1754419454894,13.22163022,163.73,163.68,6.10936393]
[1754419455116,13.22163022,163.73,163.7,43.24]
[1754419455296,0.68,163.73,163.7,43.24]
[1754419455921,0.68,163.72,163.7,43.24]
[1754419456606,12.54163022,163.74,163.7,43.24]
[1754419456806,12.54163022,163.74,163.7,43.92]
[1754419457006,13.22163022,163.74,163.7,43.92]
[1754419457808,13.22163022,163.74,163.7,43.24]
[1754419458007,19.32889798,163.74,163.7,43.24]
[1754419458734,13.22163022,163.73,163.7,43.24]
[1754419458927,0.68,163.72,163.7,43.24]
[1754419460542,13.22163022,163.71,163.7,43.24]
[1754419460840,13.22163022,163.71,163.68,43.24]
[1754419461014,13.22163022,163.7,163.68,43.24]
[1754419461444,13.22163022,163.7,163.66,49.41021443]
[1754419461653,13.22163022,163.7,163.66,43.98]
[1754419461850,19.33051356,163.7,163.66,43.98]
[1754419462006,13.22163022,163.7,163.66,50.0902194]
[1754419462740,12.54163022,163.7,163.66,50.0902194]
[1754419463722,13.22163022,163.7,163.66,50.0902194]
[1754419465152,26.0,163.71,163.67,19.33141258]
[1754419465452,26.0,163.71,163.68,0.68]
[1754419466954,26.68,163.73,163.67,18.65141258]
[1754419467186,26.68,163.73,163.69,56.46163022]
[1754419467187,26.0,163.73,163.69,56.46163022]
[1754419467363,0.68,163.73,163.69,56.46163022]
[1754419467520,39.22163022,163.73,163.69,43.92]
[1754419468056,12.54163022,163.7,163.68,43.24]
[1754419468430,0.68,163.69,163.68,43.24]
[1754419468616,7.84560978,163.7,163.68,43.24]
[1754419468822,34.52560978,163.71,163.68,43.24]
[1754419469522,6.10774926,163.73,163.68,43.24]
[1754419469523,7.84560978,163.72,163.69,0.68]
[1754419470038,33.84560978,163.73,163.7,0.68]
[1754419470233,26.0,163.73,163.7,0.68]
[1754419471062,7.84560978,163.74,163.68,57.19509028]
[1754419471275,7.84560978,163.74,163.71,0.68]
[1754419471460,8.52560978,163.73,163.69,6.78899978]
[1754419471781,7.84560978,163.7,163.68,43.24]
[1754419471982,8.52560978,163.7,163.68,43.24]
[1754419472155,0.68,163.69,163.68,43.24]
[1754419472485,7.84560978,163.7,163.68,43.24]
[1754419473054,0.68,163.71,163.68,43.24]
[1754419473055,26.68,163.71,163.68,43.24]
[1754419473282,33.84560978,163.71,163.68,43.92]
[1754419473667,40.63405693,163.71,163.68,43.24]
[1754419474587,0.68,163.7,163.68,43.24]
[1754419474769,33.84560978,163.71,163.68,43.24]
[1754419474974,34.52560978,163.71,163.68,43.24]
[1754419475995,7.84560978,163.7,163.68,43.24]
[1754419476171,7.84560978,163.69,163.66,43.3]